Cogmind - Beta 10.2 @@@ ROGUE MODE // 2021.07.13 @ 05:34:50 Player: Demise Result: Destroyed by P-60 Hacker with Shock Rifle Performance ------------- Evolutions (0) 0 Regions Visited (3) 600 Robots Destroyed (35) 175 Value Destroyed (617) 617 Prototype IDs (26) 520 Alien Tech Used (0) 0 Bonus (328) 328 TOTAL SCORE: 2240 Bonus ------- Follower Combat Kills 28 Aligned with FarCom 300 Cogmind --------- Core Integrity 0/250 Matter 187/300 Energy 97/100 System Corruption 1% Temperature Cool (0) Movement Treading (180) Ox1 Location -10/Exiles Parts ------- > --- POWER (1) -------- (None) > --- PROPULSION (2) --- Light Treads > --- UTILITY (2) ------ Large Storage Unit Large Storage Unit > --- WEAPON (2) ------- (None) > --- INVENTORY (16) --- Large Matter Pod (150) Hardened Light Armor Plating Hardened Light Armor Plating Hardened Light Armor Plating Skeleton Box Light EM Pulse Cannon Light EM Pulse Cannon Latent Energy Streamer Firepult Light Assault Rifle Mining Claw Mining Claw Explosive Trap Peak State ------------ > --- POWER ------------ (None) > --- PROPULSION ------- Improved Treads Improved Treads > --- UTILITY ---------- Large Storage Unit Large Storage Unit > --- WEAPON ----------- Firepult > --- INVENTORY -------- Light Treads Large Matter Pod Hardened Light Armor Plating Hardened Light Armor Plating Hardened Light Armor Plating Skeleton Box Light EM Pulse Cannon Light EM Pulse Cannon Latent Energy Streamer Light Assault Rifle Rocket Launcher Mining Claw Mining Claw Explosive Trap [Rating: 29] Favorites ----------- Power Light Ion Engine Engine Light Ion Engine Propulsion Improved Treads Treads Improved Treads Utility Large Storage Unit Storage Large Storage Unit Processor Signal Interpreter Protection Hardened Light Armor Plating Weapon Light Assault Rifle Energy Cannon Firepult Ballistic Gun Light Assault Rifle Launcher Rocket Launcher Special Weapon Mining Laser Slashing Weapon Mining Claw Build | -11 -10 -10 -10 ------- Run | Scr Mat Min Exi Slots Evolved . | . . . . Power . | . . . . Propulsion . | . . . . Utility . | . . . . Weapon . | . . . . Parts Attached 31 | 5 16 2 8 Power 2 | 1 1 . . Engine 2 | 1 1 . . Core . | . . . . Reactor . | . . . . Propulsion 5 | 2 2 . 1 Treads 5 | 2 2 . 1 Leg . | . . . . Wheel . | . . . . Hover . | . . . . Flight . | . . . . Utility 14 | . 10 . 4 Device . | . . . . Storage 10 | . 6 . 4 Processor 1 | . 1 . . Hackware . | . . . . Protection 3 | . 3 . . Artifact . | . . . . Weapon 10 | 2 3 2 3 Energy Gun . | . . . . Energy Cannon 2 | . . . 2 Ballistic Gun 5 | 2 2 1 . Ballistic Cannon . | . . . . Launcher 1 | . . . 1 Special Weapon 1 | . 1 . . Impact Weapon . | . . . . Slashing Weapon 1 | . . 1 . Piercing Weapon . | . . . . Special Melee Weapon . | . . . . Unidentified Prototypes . | . . . . Parts Lost 4 | . . . 4 Power 1 | . . . 1 Propulsion 2 | . . . 2 Utility . | . . . . Weapon 1 | . . . 1 Highest Loss Streak 4 | . . . 4 Average Slot Usage (%) 98 | . 98 100 97 Engine 13 | . 14 14 13 Treads 27 | . 28 28 27 Storage 23 | . 18 28 28 Protection 3 | . 8 . . Ballistic Gun 27 | . 27 27 26 Naked Turns . | . . . . Heaviest Build 69 | 7 39 38 69 Greatest Support 46 | 40 46 46 46 Greatest Overweight (x) 1 | . . . 1 Average Overweight (x) . | . . . . Largest Inventory Capacity 20 | 4 16 16 20 Average Capacity 13 | 4 10 16 16 Most Carried 20 | 3 12 16 20 Average Carried 11 | 1 8 14 15 Final Capacity 16 | 4 16 16 16 Final Carried 16 | 3 12 16 14 Class Distribution -------------------- 95% | Mutant 4% | Hauler-Mutant Dominant Class ---------------- Mutant | -10/Materials Mutant | -10/Mines Mutant | -10/Exiles Resources | -11 -10 -10 -10 ----------- Run | Scr Mat Min Exi Matter Collected 834 | 306 316 172 40 Remotely . | . . . . Salvage Created 968 | 213 650 61 44 Parts 70 | 20 46 2 2 Haulers Intercepted 2 | . 2 . . Recyclers Shooed 2 | . 2 . . Parts Field Recycled . | . . . . Retrieved Matter . | . . . . Parts Self-Destructed . | . . . . Prevented . | . . . . Kills | -11 -10 -10 -10 ------- Run | Scr Mat Min Exi Combat Hostiles Destroyed 18 | . 14 1 3 Guns 13 | . 12 1 . AOE 5 | . 2 . 3 Classes Destroyed 10 | 3 6 . 1 Worker 3 | 2 1 . . Builder 3 | . 3 . . Tunneler 5 | 5 . . . Hauler 2 | . 2 . . Recycler 2 | 1 1 . . Operator 1 | . 1 . . Watcher 1 | . 1 . . Swarmer 7 | . 6 1 . Grunt 10 | . 8 . 2 Demolisher 1 | . . . 1 Best Kill Streak 6 | 6 5 1 3 Combat Bots Only 3 | . 3 1 3 Max Kills in Single Turn 4 | 1 4 1 1 Gunslinging . | . . . . Exploded 2 | . 2 . 1 Melee . | . . . . Uniques/NPCs Destroyed . | . . . . Combat | -11 -10 -10 -10 -------- Run | Scr Mat Min Exi Damage Taken 1189 | . 613 17 559 Core 252 | . 122 . 130 Absorbed by Shields . | . . . . Core Remaining (%) 100 | 100 . . . Volleys Fired 117 | 28 79 1 9 Largest 2 | 2 2 2 1 Hottest 250 | 40 100 40 250 Shots Fired 224 | 56 157 2 9 Gun 214 | 56 156 2 . Cannon 1 | . . . 1 Launcher 8 | . . . 8 Special 1 | . 1 . . Kinetic 214 | 56 156 2 . Thermal 2 | . 1 . 1 Explosive 8 | . . . 8 Electromagnetic . | . . . . Robot Hit Streak 10 | 7 10 5 8 Robot Miss Streak 8 | 3 8 . 1 Penetration Max . | . . . . Secondary Targets 1 | . 1 . . Max Gunslinging Chain 1 | . 1 . . Shots Hit Robots 126 | 31 84 3 8 Core Hits 70 | 15 42 2 11 Critical Hits 2 | 1 1 . . Critical Kills 1 | 1 . . . Critical Parts Destroyed 1 | . 1 . . Melee Attacks 1 | . . 1 . Impact . | . . . . Slashing 1 | . . 1 . Piercing . | . . . . Sneak Attacks . | . . . . Combat Hostiles . | . . . . Follow-up Attacks . | . . . . Damage Inflicted 1666 | 262 1032 84 288 Guns 908 | 262 628 18 . Cannons . | . . . . Explosions 692 | . 404 . 288 Melee 66 | . . 66 . Ramming . | . . . . Kinetic 908 | 262 628 18 . Thermal 13 | . . . 13 Explosive 679 | . 404 . 275 Electromagnetic . | . . . . Impact . | . . . . Slashing 66 | . . 66 . Piercing . | . . . . Highest Corruption 1 | . . . 1 Average Corruption 1 | . . . 1 Corruption Purged . | . . . . Overload Shots . | . . . . Overflow Damage . | . . . . Projectiles . | . . . . Explosions . | . . . . Melee . | . . . . Knockbacks . | . . . . Impact . | . . . . Kinetic . | . . . . Secondary . | . . . . Self-Inflicted Damage 130 | . 130 . . Shots 2 | . 2 . . Rammed . | . . . . Targets Rammed . | . . . . Kicked . | . . . . Crushed . | . . . . Highest Temperature 200 | . 67 . 200 Average Temperature 20 | . 14 . 101 Received Heat Transfer 171 | . 153 . 18 Siege Activations . | . . . . Robots Corrupted . | . . . . Combat Hostiles . | . . . . Parts Fried . | . . . . Impact Corruptions . | . . . . Robots Melted . | . . . . Combat Hostiles . | . . . . Parts Melted . | . . . . Heat Transferred 80 | . . . 80 Parts Sabotaged . | . . . . Parts Stolen . | . . . . Parts Stripped . | . . . . Power Chain Reactions . | . . . . Missiles Intercepted . | . . . . Alert | -11 -10 -10 -10 ------- Run | Scr Mat Min Exi Peak Influence 396 | 40 396 225 . Initial 95 | . 26 95 . Average 135 | 14 219 54 . Maximum Alert Level 1 | . 1 1 . Low Security (%) 65 | 100 32 98 . Level 1 34 | . 67 1 . Level 2 . | . . . . Level 3 . | . . . . Level 4 . | . . . . Level 5 . | . . . . High Security . | . . . . Max Security . | . . . . Squads Dispatched 3 | . 3 . . Investigation 3 | . 3 . . Extermination . | . . . . Reinforcement . | . . . . Assault . | . . . . Garrison . | . . . . Intercept . | . . . . Construction Impeded . | . . . . Haulers Reinforced . | . . . . Stealth | -11 -10 -10 -10 --------- Run | Scr Mat Min Exi Distress Signals 2 | . 2 . . Communications Jammed . | . . . . Distress Signals . | . . . . Times Spotted 42 | . 35 2 5 Peak Tracking Total 4 | . 4 3 3 Tactical Retreats 3 | . 2 1 . Traps | -11 -10 -10 -10 ------- Run | Scr Mat Min Exi Traps Triggered 2 | . 2 . . Indirectly . | . . . . Trap Hack Attempts . | . . . . Triggered . | . . . . Disarmed . | . . . . Reprogrammed . | . . . . Reused . | . . . . Traps Extracted . | . . . . Installed 2 | . . 1 1 Triggered . | . . . . Machines | -11 -10 -10 -10 ---------- Run | Scr Mat Min Exi Machines Disabled 6 | . 4 . 2 Max in Single Turn 2 | . 2 . 2 Machines Sabotaged . | . . . . Garrisons Compromised . | . . . . Overloaded Fab Kills . | . . . . Fab Network Shutdowns . | . . . . Hacking | -11 -10 -10 -10 --------- Run | Scr Mat Min Exi Machines Accessed 13 | . 11 . 2 Terminals 8 | . 8 . . Fabricators . | . . . . Repair Stations 1 | . 1 . . Recycling Units 2 | . 2 . . Scanalyzers . | . . . . Garrison Access . | . . . . Total Hacks 42 | . 40 . 2 Successful 18 | . 16 . 2 Failed 24 | . 24 . . Catastrophic . | . . . . Database Lockouts . | . . . . Manual 23 | . 22 . 1 Terminals 30 | . 30 . . Fabricators . | . . . . Repair Stations 2 | . 2 . . Recycling Units 8 | . 8 . . Scanalyzers . | . . . . Garrison Access . | . . . . Terminal Hacks 10 | . 8 . 2 Record 1 | . . . 1 Part Schematic 1 | . 1 . . Robot Analysis 3 | . 3 . . Prototype ID Bank 2 | . 2 . . Terminal Index 1 | . 1 . . Locate Traps 1 | . 1 . . EX-Prototype ID Bank 1 | . . . 1 Fabricator Hacks . | . . . . Repair Station Hacks 2 | . 2 . . Scan Component 1 | . 1 . . Repair 1 | . 1 . . Recycling Unit Hacks 2 | . 2 . . Retrieve Components 2 | . 2 . . Scanalyzer . | . . . . Garrison Access Hacks . | . . . . Unauthorized Hacks 4 | . 4 . . Terminals 4 | . 4 . . Assimilate 1 | . 1 . . Botnet 2 | . 2 . . Operators 1 | . 1 . . Fabricators . | . . . . Repair Stations . | . . . . Recycling Units . | . . . . Scanalyzers . | . . . . Garrison Access . | . . . . Data Cores Recovered . | . . . . Used . | . . . . Hacking Detections 9 | . 9 . . Full Trace Events 4 | . 4 . . Feedback Events . | . . . . Feedback Blocked . | . . . . Robot Schematics Acquired . | . . . . Robots Built . | . . . . Matter . | . . . . Time . | . . . . Total Robot Build Rating . | . . . . Part Schematics Acquired 1 | . 1 . . Parts Built . | . . . . Matter . | . . . . Time . | . . . . Total Part Build Rating . | . . . . Parts Repaired 1 | . 1 . . Time 26 | . 26 . . Parts Recycled . | . . . . Recycled Matter . | . . . . Retrieved Matter . | . . . . Retrieved Components 10 | . 10 . . Parts Scanalyzed . | . . . . Part Schematics Acquired . | . . . . Parts Damaged . | . . . . Bothacking | -11 -10 -10 -10 ------------ Run | Scr Mat Min Exi Used RIF Installer . | . . . . Robots Hacked . | . . . . Non-combat . | . . . . Combat . | . . . . Robot Hacks Applied . | . . . . Relay Couplers Released . | . . . . Robots Rewired . | . . . . Allies Hacked . | . . . . Hacks Repelled . | . . . . Allies | -11 -10 -10 -10 -------- Run | Scr Mat Min Exi Total Allies 3 | . . 3 . Largest Group 3 | . . 3 . Highest-Rated Group 40 | . . 40 . Highest-Rated Ally 16 | . . 16 . Total Orders . | . . . . Ally Attacks 26 | . . 26 . Total Damage 161 | . . 161 . Kills 4 | . . 4 . Allies Corrupted . | . . . . Allies Melted . | . . . . Intel | -11 -10 -10 -10 ------- Run | Scr Mat Min Exi Robot Analysis Total 3 | . 3 . . Derelict Logs Recovered 1 | . . 1 . Drone Launches . | . . . . Drone Recoveries . | . . . . Exploration | -11 -10 -10 -10 ------------- Run | Scr Mat Min Exi Turns Passed 3515 | 139 1415 1254 707 Spaces Moved 1890 | 37 685 770 398 Core 2 | 2 . . . Treads 1888 | 35 685 770 398 Legs . | . . . . Wheels . | . . . . Hover . | . . . . Flight . | . . . . Fastest Speed 50 | 50 160 160 160 Average Speed 160 | 154 160 160 164 Slowest Speed 180 | 160 160 160 180 Overloaded Moves . | . . . . Propulsion Burnouts . | . . . . Robots Hopped . | . . . . Cave-ins Triggered . | . . . . Exploration Rate (%) 67 | 3 99 98 70 Regions Visited 3 Branch Regions 2 Pre-discovered Areas 1 | . . . 1 Known Exits Taken 1 | . 1 . . Unknown Exits Taken 2 | 1 . 1 . Scrap Searched 2 | . . 2 . Spaces Dug . | . . . . Terrain Destroyed 63 | . 55 . 8 Melee . | . . . . Projectile . | . . . . AOE 63 | . 55 . 8 Terrain Rammed . | . . . . Walls Destroyed . | . . . . Machines Disabled . | . . . . Actions | -11 -10 -10 -10 --------- Run | Scr Mat Min Exi Total 2191 | 72 881 791 447 Wait 83 | . 73 . 10 Move 1887 | 36 684 769 398 Hop . | . . . . Pick Up 32 | 3 12 10 7 Fast Attach 13 | 5 8 . . Attach 6 | . 2 . 4 Detach 8 | . 6 . 2 Swap 12 | . 6 2 4 Drop 29 | . 11 6 12 Fire 117 | 28 79 1 9 Melee 1 | . . 1 . Ram . | . . . . Kick . | . . . . Crush . | . . . . Escape Stasis . | . . . . Rewire 1 | . . 1 . Trap 2 | . . 1 1 Miscellaneous . | . . . . Route ------- -11/Scrapyard -10/Materials (discovered 4 exits: [*Mat x3] / *Min) -10/Mines (discovered 3 exits: [*Mat x2] / *Exi) -10/Exiles (discovered 2 exits: [*Min x2]) History --------- Turn | Location | Event 23 | -11/Scrapyard | Discovered new exit (range 16) 140 | -11/Scrapyard | Entered Materials 300 | -10/Materials | Build established: Mutant 569 | -10/Materials | Discovered new exit (range 14) 793 | -10/Materials | Repaired Lgt. Assault Rifle 870 | -10/Materials | Discovered new exit (range 7) 954 | -10/Materials | Discovered new exit (range 16) 1145 | -10/Materials | Identified exit to Mines 1260 | -10/Materials | Discovered new exit (range 16) 1555 | -10/Materials | Entered Mines 1571 | -10/Mines | Assisted by bots powering up and referring to "LRC-V3" 1572 | -10/Mines | Met a Derelict bent on vengeance 1616 | -10/Mines | Learned Materials stockpile data 1666 | -10/Mines | Received a Rocket Launcher from a helpful Derelict 1709 | -10/Mines | Discovered new exit (range 11) 2120 | -10/Mines | Deemed a non-threat by the Exiles lab entrance 2120 | -10/Mines | Discovered new exit (range 5) 2208 | -10/Mines | Found a hidden stash of uninstalled traps 2525 | -10/Mines | Found a damaged Exp. Sensor Array with a note attached 2529 | -10/Mines | Found Prototype Device 2678 | -10/Mines | Discovered new exit (range 4) 2809 | -10/Mines | Entered Exiles 2830 | -10/Exiles | Discovered new exit (range 15) 2853 | -10/Exiles | Met 8R-AWN 2878 | -10/Exiles | Met EX-HEX 2994 | -10/Exiles | Met EX-DEC 3024 | -10/Exiles | Learned location of Zion (-6) 3085 | -10/Exiles | Discovered new exit (range 10) 3252 | -10/Exiles | Met EX-BIN 3272 | -10/Exiles | Aligned with FarCom system 3273 | -10/Exiles | Given EX-Vault access code 3310 | -10/Exiles | Opened EX-Vault 3318 | -10/Exiles | Found Firepult 3322 | -10/Exiles | Found Skeleton Box 3363 | -10/Exiles | Warned to stay clear of 0b10 Research branches 3378 | -10/Exiles | Exiles lab attacked by MAIN.C 3419 | -10/Exiles | Found Latent Energy Streamer 3491 | -10/Exiles | Core integrity fell below 50% 3495 | -10/Exiles | Core integrity fell below 20% 3516 | -10/Exiles | Destroyed by P-60 Hacker with Shock Rifle Last Messages --------------- last time as a little joke and some thief managed to sneak in here and steal a few of HEX's prototypes. 03374_ Dropped Explosive Trap. 03375_ Installed Explosive Trap. 03378_ EXILES: Incoming Unaware force detected on approach from Mines. Prepare for evacuation. 03413_ EXILES: Lab perimeter alert, evacuate immediately. 03419_ Acquired Latent Energy Streamer. 03476_ Lgt. Ion Engine destroyed. 03476_ BIN's Workstation disabled. 03476_ Machine disabled. 03478_ Dropped Lgt. Assault Rifle. 03480_ Machine disabled. 03490_ The unstable cave ceiling collapses. 03491_ Imp. Treads destroyed. 03495_ The unstable cave ceiling collapses. 03497_ G-34 Mercenary destroyed. 03503_ Imp. Treads destroyed. 03505_ D-53 Grenadier destroyed. 03516_ Rocket Launcher destroyed. Map ----- +----------------------------------------------------+ | ??????????????????????# ## """#????????????? | | ???????????????#####??# #??"""""#????????????? | | ???????????????""""""?# #???####?????????????? | | ???????????????"""" ## #????????????????????? | | ??????????????#""X" #????????????????????? | | ??????????????#" #????????????????????? | | ??????????????#" ## #????????????????????? | | ??????????????#""""""?# #?#########??????????? | | ??????????????##"###??# #?#"""""""#??????????? | | ??????????????? ??????# #?#"""""""#??????????? | | ??????????????????????# #?#"""""""#??????????? | | ?????????????????????## ###"" """"#??????????? | | ?????????????????????#" """"#??????????? | | ?????????????????????#" """#??????????? | | ?????????????????????#" """#??????????? | | ?????????????????????#" """#??????????? | | ?????????????????????#" ^ """#??????????? | | ????????? ???????????#" """#??????????? | | ????????" """#???????## """""?????????? | | ????????" ?????????# """##?????????? | | ???????"" ?????????# X" """"??????????? | | ???????"" "#????????# "" #??????????? | | ??????? ""?????????# """""""#??????????? | | ????????" "?????????## #######??????????? | | ????????# #????????##"" ##????????????????? | | ###???### ###?######"" @ ##?????????????????? | | ""#####X# #"###""""""" #??????????????????? | | """""" " "" #???##??###???????? | | "" """ ####"""""""""##???? | | " " " """ """"##??? | | "" " #??? | | " """#??? | | " "#??? | | " "##?? | | #" ""### | | #""" """ p """# | | #" ###### p "# | | "" ""##????### # # | | """ """##????????### " | | "" """##???????????#"""" | | "" ""#???????????##"" | | " ########??####"""" | | "" ## ####""" | | " """" | | "" | | """" | | # " | | #" " "" """ "" | | #"""" ""## ##""" " " ""#" "# | | #"" ""#### ######""" """##"""""""## | +----------------------------------------------------+ Best States ------------- Heat Dissipation 25 Energy Generation 10 Energy Capacity 250 Matter Stores 300 Matter Capacity 300 Sight Range 16 Terrain Scan Density 10 Armor Coverage 150 Power Shielding 33 Evasion (%) 40 Recoil Reduction 2 Item Schematics ----------------- Hcp. Storage Unit | -10/Materials | Hacked Robot Schematics ------------------ None Fabricated ------------ Nothing Alien Tech Used ----------------- None Achievements -------------- None Challenges ------------ None Game ------ Seed OmegaHelicalNukerbomber Manual? 0 Play Time 00:24:32 Cumulative 391.0 hours Start 2021.07.12 @ 13:07:14 End 2021.07.13 @ 05:34:50 Sessions 5 Manual Loads 0 Difficulty Rogue Special Mode None Game No. 318 Rogue 318 Adventurer 0 Explorer 0 Win Type - Total 1 Types 0/0/0/1/0/0/0/0/0 Lore% 70 Gallery% 79 Achievement% 60 Wizard Run 0 Options --------- ASCII 0 Keyboard 1 Movement Numpad Keybinds 0 Fullscreen 1 Font 12/Terminus Map View 83x54 Tactical HUD 1 Map Filters NONE Filters NONE Steam 1 RUN: 40d411de-35d2-4386-8bd1-6ed854a1ffd5